bitfinex-derivatives/quotes_BTCF0:USTF0_20251229
["timestamp","ask_amount","ask_price","bid_price","bid_amount"]
[1767006107570,0.0114077,87764.0,87750.0,0.05732]
[1767006108376,0.0114077,87764.0,87749.0,0.00017087]
[1767006108577,0.09692,87772.0,87750.0,0.05732]
[1767006108776,0.0114074,87766.0,87749.0,0.00017087]
[1767006108977,0.0114074,87766.0,87750.0,0.15424]
[1767006109480,0.0114074,87766.0,87751.0,0.05732]
[1767006109881,0.0114074,87766.0,87749.0,0.00017087]
[1767006110174,0.0114074,87766.0,87750.0,0.15424]
[1767006112485,0.011407,87769.0,87750.0,0.15424]
[1767006113181,0.0114073,87767.0,87750.0,0.15424]
[1767006113981,0.09692,87772.0,87750.0,0.15424]
[1767006114378,0.0114068,87770.0,87754.0,0.0114088]
[1767006114785,0.09692,87772.0,87750.0,0.15424]
[1767006114983,0.0114067,87771.0,87750.0,0.15424]
[1767006115283,0.0251771,87770.0,87751.0,0.11394583]
[1767006115579,0.02517795,87769.0,87749.0,0.00017087]
[1767006115782,0.0114075,87765.0,87750.0,0.05732]
[1767006116480,0.0114075,87765.0,87749.0,0.00017087]
[1767006116673,0.0114079,87762.0,87750.0,0.09861]
[1767006117380,0.0114086,87757.0,87749.0,0.00017087]
[1767006117685,8.679e-05,87756.0,87743.0,0.05728]
[1767006119979,8.679e-05,87756.0,87744.0,0.0114101]
[1767006120483,8.679e-05,87756.0,87743.0,0.05728]
[1767006121076,8.679e-05,87756.0,87743.0,0.0114102]
[1767006121273,8.679e-05,87756.0,87741.0,0.00017087]
[1767006121579,0.06092224,87775.0,87742.0,0.11396011]
[1767006121782,0.0114074,87766.0,87750.0,0.0114094]
[1767006122087,0.011407,87769.0,87750.0,0.0114094]
[1767006122378,0.0114073,87767.0,87750.0,0.0114094]
[1767006122571,0.0114073,87767.0,87747.0,0.05728]
[1767006122572,0.01157817,87767.0,87747.0,0.1656098]
[1767006123782,0.00017087,87767.0,87750.0,0.0114094]
[1767006124177,0.00017087,87767.0,87747.0,0.1656097]
[1767006124378,0.0114068,87771.0,87747.0,0.1542]
[1767006124579,0.1542,87774.0,87753.0,0.011409]
[1767006124775,0.09703256,87800.0,87748.0,0.11395102]
[1767006124776,0.09692,87779.0,87761.0,0.0114079]
[1767006124975,0.06092224,87791.0,87762.0,0.1542]
[1767006125187,0.108324,87792.0,87773.0,0.0114063]
[1767006125388,0.00017087,87791.0,87774.0,0.00017087]
[1767006125684,0.0114052,87783.0,87774.0,0.00017087]
[1767006125984,0.0114061,87776.0,87755.0,0.0114088]
[1767006126188,0.0114061,87776.0,87756.0,0.1542]
[1767006126385,0.0114064,87774.0,87757.0,0.05728]
[1767006126594,0.0114064,87774.0,87757.0,0.1542]
[1767006126887,0.00017087,87774.0,87758.0,0.11393998]
[1767006127087,0.0114047,87787.0,87758.0,0.11393998]
[1767006127588,0.0114059,87777.0,87758.0,0.11393998]
[1767006127989,0.00017087,87776.0,87758.0,0.11393998]
[1767006128286,0.00017087,87776.0,87759.0,0.0114082]
[1767006128887,0.00017087,87776.0,87760.0,0.11393739]
[1767006129089,0.00017087,87776.0,87761.0,0.0114079]
[1767006129289,0.0114055,87781.0,87760.0,0.12534549]
[1767006129489,0.0114058,87779.0,87760.0,0.0114081]
[1767006130289,0.00011365,87778.0,87760.0,0.0114081]
[1767006130587,0.011406,87777.0,87760.0,0.0114081]
[1767006130791,0.011406,87777.0,87757.0,0.16577937]
[1767006131187,0.011406,87777.0,87759.0,0.0114082]
[1767006131791,0.011406,87777.0,87757.0,0.15437087]
[1767006131792,0.00011365,87778.0,87761.0,0.0114079]
[1767006132494,0.0114059,87777.0,87760.0,0.01]
[1767006133189,0.0114059,87777.0,87760.0,0.021408]
[1767006133893,0.00011365,87778.0,87762.0,0.0114078]
[1767006134293,0.02506557,87777.0,87762.0,0.0114078]
[1767006134494,0.011406,87777.0,87761.0,0.1542]
[1767006134695,0.0114063,87775.0,87761.0,0.1542]
[1767006134994,0.00011365,87778.0,87761.0,0.1542]
[1767006135189,0.02506516,87777.0,87761.0,0.1542]
[1767006135388,0.02506516,87776.0,87761.0,0.1542]
[1767006135593,0.00011365,87778.0,87761.0,0.1542]
[1767006135799,0.02506406,87777.0,87761.0,0.1542]
[1767006136092,0.0114083,87759.0,87750.0,0.09692]
[1767006136288,0.0114091,87753.0,87740.0,0.05445]
[1767006136480,0.0114091,87753.0,87741.0,0.05728]
[1767006136682,0.0114087,87756.0,87741.0,0.05728]
[1767006137284,0.01141,87746.0,87735.0,0.05728]
[1767006137490,0.0114096,87749.0,87735.0,0.05728]
[1767006138289,0.00017087,87757.0,87733.0,0.00017087]
[1767006138492,0.0250466,87756.0,87733.0,0.00017087]
[1767006138691,0.00017087,87757.0,87733.0,0.00017087]
[1767006138692,0.0250466,87755.0,87733.0,0.00017087]
[1767006138889,0.0250466,87754.0,87733.0,0.00017087]
[1767006139089,0.0250466,87753.0,87733.0,0.00017087]
[1767006139288,0.0250466,87753.0,87727.0,0.0114123]
[1767006139289,0.0114102,87745.0,87727.0,0.0686923]
[1767006139688,0.02503294,87744.0,87694.0,0.09692]
[1767006139895,0.0114126,87726.0,87701.0,7.974e-05]
[1767006140105,0.0114136,87718.0,87695.0,0.01139]
[1767006140395,0.00017097,87715.0,87698.0,0.00017097]
[1767006140694,0.09692,87714.0,87687.0,0.05728]
[1767006140995,0.0114144,87712.0,87687.0,0.05728]
[1767006141393,7.974e-05,87714.0,87687.0,0.05728]
[1767006141601,0.09699974,87714.0,87692.0,0.00017097]
[1767006142097,7.1e-07,87715.0,87692.0,0.00017097]
[1767006142397,7.1e-07,87715.0,87703.0,0.0114155]
[1767006142605,7.1e-07,87715.0,87703.0,0.05728]
[1767006143096,7.1e-07,87715.0,87704.0,0.11401338]
[1767006144491,7.1e-07,87715.0,87705.0,0.0114152]
[1767006145102,7.1e-07,87715.0,87706.0,0.11401273]
[1767006145487,7.1e-07,87715.0,87707.0,0.05728]
[1767006146294,7.1e-07,87715.0,87708.0,0.11401143]
[1767006146599,0.0114107,87741.0,87708.0,0.12542623]
[1767006146799,0.09696,87740.0,87708.0,0.12542623]
[1767006147000,0.0114112,87736.0,87708.0,0.11401143]
[1767006147499,0.06092224,87764.0,87716.0,0.0114137]
[1767006147701,0.01158087,87747.0,87729.0,0.00017097]
[1767006148302,0.01158087,87747.0,87730.0,0.04187]
[1767006148808,0.00017097,87747.0,87729.0,0.00017097]
[1767006149104,0.0114108,87740.0,87729.0,0.00017097]
[1767006149804,0.0114108,87740.0,87715.0,0.0114138]
[1767006150012,0.0114108,87740.0,87716.0,0.15428]
[1767006150195,0.0114108,87740.0,87717.0,0.11398024]
[1767006150502,0.0114108,87740.0,87718.0,0.0114135]
[1767006150912,0.0114108,87740.0,87720.0,0.00017097]
[1767006151394,0.0114108,87740.0,87721.0,0.11398804]
[1767006151596,0.0114103,87744.0,87721.0,0.12540124]
[1767006151799,0.0114103,87744.0,87721.0,0.16473124]
[1767006152000,0.00017097,87747.0,87721.0,0.16473124]
[1767006152203,0.0114107,87741.0,87721.0,0.15331804]
[1767006153398,0.0114111,87738.0,87721.0,0.15331804]
[1767006153796,0.00017097,87747.0,87721.0,0.15331804]
[1767006154101,0.00017097,87747.0,87721.0,0.03933]
[1767006154996,0.00017097,87747.0,87722.0,0.11398089]
[1767006155196,0.09696,87746.0,87722.0,0.11398089]
[1767006155495,0.09696,87746.0,87723.0,0.05732]
[1767006156294,0.0114107,87741.0,87723.0,0.05732]
[1767006156499,0.09696,87746.0,87724.0,0.0114127]
[1767006157096,0.0114105,87742.0,87723.0,0.05732]
[1767006158702,0.0114105,87742.0,87724.0,0.0114127]
[1767006160408,0.09696,87746.0,87723.0,0.05732]
[1767006160409,0.10837,87746.0,87727.0,0.0114124]
[1767006160909,0.09696,87746.0,87723.0,0.05732]
[1767006161106,0.00017097,87747.0,87731.0,0.0114118]
[1767006161493,0.00017097,87747.0,87723.0,0.05732]
[1767006161700,0.01141,87746.0,87730.0,0.0114119]
[1767006162200,0.09696,87751.0,87731.0,0.05732]
[1767006162400,0.18552488,87770.0,87731.0,0.05732]
[1767006162401,0.0114089,87754.0,87731.0,0.17129959]
[1767006162710,0.09696,87757.0,87739.0,0.0114107]
[1767006162906,0.09696,87757.0,87732.0,0.11396985]
[1767006163112,0.0114074,87766.0,87733.0,0.15428]
[1767006163302,0.0114074,87766.0,87736.0,0.00017097]
[1767006163503,0.0114074,87766.0,87742.0,0.0114103]
[1767006163703,0.09696,87769.0,87743.0,0.15428]
[1767006163704,0.0114077,87764.0,87743.0,0.15428]
[1767006164111,0.0114072,87767.0,87743.0,0.26823491]
[1767006164411,0.0114082,87760.0,87743.0,0.26823491]
[1767006164612,0.00017097,87764.0,87743.0,0.26823491]
[1767006164613,0.0114087,87756.0,87743.0,0.26823491]
[1767006165111,0.0114082,87760.0,87743.0,0.26823491]
[1767006165311,0.00017097,87764.0,87743.0,0.26823491]
[1767006165502,0.02561909,87763.0,87743.0,0.26823491]
[1767006165703,0.00017097,87764.0,87743.0,0.26823491]
[1767006165903,0.02561892,87763.0,87743.0,0.26823491]
[1767006166106,0.00017097,87764.0,87743.0,0.26823491]
[1767006166305,0.02561892,87763.0,87743.0,0.26823491]
[1767006166505,0.00017097,87764.0,87743.0,0.26823491]
[1767006166706,0.02562162,87763.0,87743.0,0.26823491]
[1767006166915,0.00017097,87764.0,87743.0,0.26823491]
[1767006167117,0.02562162,87763.0,87743.0,0.26823491]
[1767006167316,0.02562504,87762.0,87743.0,0.26823491]
[1767006167517,0.00017097,87764.0,87743.0,0.26823491]
[1767006167813,0.02562219,87763.0,87743.0,0.26823491]
[1767006168111,0.02562219,87762.0,87743.0,0.26823491]
[1767006168413,0.00017097,87764.0,87743.0,0.26823491]
[1767006168716,0.02561988,87763.0,87743.0,0.26823491]
[1767006169013,0.02561988,87762.0,87743.0,0.26823491]
[1767006169214,0.00017097,87764.0,87743.0,0.26823491]
[1767006169508,0.02561988,87763.0,87743.0,0.26823491]
[1767006169710,0.02561988,87762.0,87743.0,0.26823491]
[1767006169913,0.00017097,87764.0,87743.0,0.26823491]
[1767006170117,0.02561651,87763.0,87743.0,0.26823491]
[1767006170316,0.02561651,87762.0,87743.0,0.26823491]
[1767006170509,0.00017097,87764.0,87743.0,0.26823491]
[1767006170708,0.02562089,87763.0,87743.0,0.26823491]
[1767006170912,0.02562089,87762.0,87743.0,0.26823491]
[1767006171109,0.00017097,87764.0,87743.0,0.26823491]
[1767006171310,0.02562076,87763.0,87743.0,0.26823491]
[1767006171510,0.02562076,87762.0,87743.0,0.26823491]
[1767006171808,0.00017097,87764.0,87743.0,0.26823491]
[1767006172008,0.02562859,87763.0,87743.0,0.26823491]
[1767006172212,0.02562859,87762.0,87743.0,0.26823491]
[1767006172511,0.02563364,87761.0,87743.0,0.26823491]
[1767006172812,0.02563364,87760.0,87743.0,0.26823491]
[1767006173013,0.00017097,87764.0,87743.0,0.26823491]
[1767006173213,0.02563412,87763.0,87743.0,0.26823491]
[1767006173414,0.02563412,87762.0,87736.0,0.00017097]
[1767006173616,0.02563412,87761.0,87737.0,0.15424]
[1767006173817,0.02563412,87760.0,87737.0,0.27559751]
[1767006174010,0.02563412,87759.0,87737.0,0.27559751]
[1767006174210,0.02563412,87758.0,87737.0,0.27559751]
[1767006174516,0.02563412,87757.0,87737.0,0.12135751]
[1767006174713,0.12260538,87756.0,87737.0,0.0074]
[1767006174907,0.02564538,87755.0,87737.0,0.0074]
[1767006176212,0.09696,87763.0,87738.0,0.1139653]
[1767006176413,0.02564848,87762.0,87738.0,0.1139653]
[1767006176712,0.02564848,87761.0,87738.0,0.1139653]
[1767006176904,0.02564848,87760.0,87738.0,0.1139653]
[1767006177109,0.02564848,87759.0,87738.0,0.1139653]
[1767006177316,0.02564848,87758.0,87738.0,0.1139653]
[1767006177634,0.02564848,87757.0,87738.0,0.1139653]
[1767006177812,0.02564848,87756.0,87738.0,0.1139653]
[1767006178110,0.09696,87763.0,87738.0,0.1139653]
[1767006178313,0.02565976,87762.0,87738.0,0.1139653]
[1767006178512,0.02565976,87761.0,87738.0,0.1139653]
[1767006178718,0.02565976,87760.0,87738.0,0.1139653]
[1767006179017,0.02565976,87759.0,87738.0,0.1139653]
[1767006179218,0.02565976,87758.0,87738.0,0.1139653]
[1767006179511,0.02565976,87757.0,87738.0,0.1139653]
[1767006179718,0.02565976,87756.0,87738.0,0.1139653]
[1767006179913,0.09696,87763.0,87738.0,0.1139653]
[1767006180114,0.02566105,87762.0,87738.0,0.1139653]
[1767006180412,0.02566105,87761.0,87738.0,0.1139653]
[1767006180612,0.2111007,87760.0,87738.0,0.1139653]
[1767006180813,0.02566105,87759.0,87738.0,0.1139653]
[1767006181719,1.05e-06,87758.0,87738.0,0.1139653]
[1767006182016,0.09696,87763.0,87738.0,0.1139653]
[1767006182314,0.09696,87763.0,87740.0,0.18543965]
[1767006182510,0.09696,87763.0,87741.0,0.15424]
[1767006182913,0.09696,87763.0,87742.0,0.11395751]
[1767006184511,9.7e-07,87764.0,87742.0,0.11395751]
[1767006184819,0.09696,87770.0,87742.0,0.11395751]
[1767006186924,0.00011368,87765.0,87742.0,0.11395751]
[1767006188322,0.09696,87770.0,87742.0,0.11395751]
[1767006190524,0.06092224,87786.0,87750.0,0.18540182]
[1767006190722,0.05728,87793.0,87759.0,0.00017097]
[1767006191024,0.18540182,87790.0,87760.0,0.15424]
[1767006191222,0.18540182,87790.0,87760.0,0.11393674]
[1767006191424,0.18540182,87790.0,87761.0,0.05728]
[1767006191826,0.18540182,87790.0,87759.0,0.00017097]
[1767006192025,0.18540182,87780.0,87759.0,0.00017097]
[1767006192227,0.15424,87779.0,87759.0,0.00017097]
[1767006193724,0.02559361,87778.0,87759.0,0.00017097]
[1767006193925,0.02559361,87777.0,87759.0,0.00017097]
[1767006194122,0.02559361,87776.0,87759.0,0.00017097]
[1767006194328,0.02559361,87775.0,87755.0,0.05728]
[1767006194527,0.15424,87779.0,87750.0,0.09696]
[1767006194528,0.02559361,87774.0,87753.0,0.05728]
[1767006194727,0.02559361,87773.0,87753.0,0.05728]
[1767006194918,0.08287361,87772.0,87753.0,0.05728]
[1767006195121,0.02559361,87771.0,87753.0,0.05728]
[1767006195328,0.02576458,87771.0,87753.0,0.05745097]
[1767006195524,0.21099543,87770.0,87726.0,0.00010747]
[1767006195731,0.12251361,87769.0,87738.0,0.1542]
[1767006195933,0.02559361,87768.0,87738.0,0.26814258]
[1767006196532,0.02559361,87768.0,87744.0,0.00017097]
[1767006196833,0.18540182,87760.0,87744.0,0.00017097]
[1767006197035,0.08287361,87759.0,87744.0,0.00017097]
[1767006197232,0.02559361,87758.0,87744.0,0.00017097]
[1767006197432,0.02559361,87758.0,87726.0,0.00010747]
[1767006197634,0.02559361,87758.0,87737.0,0.06468]
[1767006198534,0.02559361,87758.0,87739.0,0.00017097]
[1767006202732,0.02559361,87758.0,87740.0,0.01139]
[1767006204943,0.02559361,87758.0,87740.0,0.00739]
[1767006206541,0.18549079,87750.0,87739.0,0.00017097]
[1767006209942,0.00017097,87753.0,87739.0,0.00017097]
[1767006210143,0.18549079,87750.0,87739.0,0.00017097]
[1767006210336,0.18549079,87750.0,87740.0,0.05091]
[1767006211247,0.18549079,87750.0,87739.0,0.00017097]
[1767006212440,0.00017097,87753.0,87739.0,0.00017097]
[1767006216549,0.15037097,87759.0,87739.0,0.00017097]
[1767006216739,0.02509668,87758.0,87739.0,0.00017097]
[1767006217040,0.02509668,87757.0,87739.0,0.00017097]
[1767006217339,0.02509668,87756.0,87739.0,0.00017097]
[1767006217540,0.02509668,87755.0,87739.0,0.00017097]
[1767006218842,0.18549625,87770.0,87739.0,0.00017097]
[1767006218843,0.06092224,87779.0,87740.0,0.11396401]
[1767006219052,0.15788224,87780.0,87740.0,0.11396401]
[1767006219345,0.09696,87780.0,87740.0,0.11396401]
[1767006219533,0.09296,87780.0,87740.0,0.11396401]
[1767006219943,0.00017097,87769.0,87740.0,0.11396401]
[1767006220338,0.00017097,87769.0,87740.0,0.29946026]
[1767006220339,9.7e-07,87769.0,87740.0,0.29946026]
[1767006220542,0.09696,87796.0,87750.0,0.18549625]
[1767006220748,0.09696,87796.0,87751.0,0.15424]
[1767006220940,0.09696,87796.0,87751.0,0.28578931]
[1767006221141,0.09696,87796.0,87752.0,0.11393025]
[1767006221349,0.09696,87796.0,87753.0,0.15424]
[1767006221552,0.09696,87796.0,87766.0,0.00017097]
[1767006221844,0.09696,87796.0,87767.0,0.15424]
[1767006222049,0.09696,87796.0,87767.0,0.26817025]
[1767006222746,0.09696,87796.0,87767.0,0.11393025]
[1767006222948,0.09696,87796.0,87768.0,0.15424]
[1767006223547,0.0114045,87788.0,87768.0,0.15424]
[1767006223742,0.0114049,87785.0,87768.0,0.15424]
[1767006226359,0.0114048,87786.0,87769.0,0.0114068]
[1767006226553,0.0114048,87786.0,87768.0,0.15424]
[1767006227246,0.0114048,87786.0,87768.0,0.165647]
[1767006228255,0.0114043,87789.0,87768.0,0.165647]
[1767006229055,0.0114047,87787.0,87768.0,0.165647]
[1767006229954,0.0108047,87787.0,87768.0,0.165647]
[1767006230346,0.0114047,87787.0,87768.0,0.15424]
[1767006230556,0.011405,87784.0,87768.0,0.15424]
[1767006230941,0.05728,87792.0,87766.0,0.00017097]
[1767006231145,0.0114068,87770.0,87764.0,0.05724]
[1767006231355,0.0114064,87774.0,87763.0,0.05724]
[1767006231555,0.0114068,87770.0,87759.0,0.11392635]
[1767006231741,0.0114068,87770.0,87760.0,0.05324]
[1767006232147,0.0114064,87773.0,87760.0,0.05324]
[1767006233357,0.0114069,87770.0,87760.0,0.05324]
[1767006233749,0.0114084,87758.0,87749.0,0.09692]
[1767006233952,0.0114086,87756.0,87741.0,0.09692]
[1767006234147,0.0114081,87761.0,87742.0,0.05324]
[1767006234655,0.0114084,87758.0,87742.0,0.05324]
[1767006234857,0.00017097,87759.0,87742.0,0.05324]
[1767006235053,0.00017097,87759.0,87743.0,0.0114103]
[1767006235358,0.0114085,87758.0,87743.0,0.01139]
[1767006236456,0.0114085,87758.0,87744.0,0.15416]
[1767006236655,0.00017097,87759.0,87744.0,0.15416]
[1767006236859,0.01157927,87759.0,87744.0,0.15416]
[1767006238259,0.00017097,87759.0,87744.0,0.15416]
[1767006238461,0.0114084,87758.0,87744.0,0.15416]
[1767006238666,0.09692,87776.0,87745.0,0.11395816]
[1767006238959,0.02483857,87775.0,87750.0,0.0114094]
[1767006239162,0.02483857,87774.0,87751.0,0.05724]
[1767006239355,0.02483857,87773.0,87751.0,0.05724]
[1767006239552,0.02483857,87772.0,87751.0,0.05724]
[1767006239756,0.09692,87779.0,87753.0,0.01157997]
[1767006239957,0.02484278,87778.0,87754.0,0.09692]
[1767006240157,0.0114063,87775.0,87756.0,0.0114086]
[1767006240353,0.0114063,87775.0,87757.0,0.05724]
[1767006240666,0.09692,87779.0,87758.0,0.0114083]
[1767006240667,0.0114058,87778.0,87758.0,0.0114083]
[1767006240960,0.1083244,87789.0,87770.0,0.0114067]
[1767006241156,0.02484574,87788.0,87773.0,0.0114064]
[1767006241352,0.1083239,87793.0,87771.0,0.06881746]
[1767006241353,0.02484574,87787.0,87771.0,0.06881746]
[1767006241553,0.0074043,87790.0,87771.0,0.06881746]
[1767006241949,0.09692,87793.0,87771.0,0.05741086]
[1767006242153,0.02484297,87792.0,87771.0,0.05741086]
[1767006242461,0.02484297,87791.0,87771.0,0.05741086]
[1767006242762,0.0114045,87789.0,87771.0,0.05741086]
[1767006242954,0.0114045,87789.0,87772.0,0.12532701]
[1767006243355,0.011404,87792.0,87772.0,0.12532701]
[1767006243557,0.02484247,87791.0,87774.0,0.0114062]
[1767006243757,0.011404,87792.0,87772.0,0.11392051]
[1767006243958,0.02484246,87791.0,87772.0,0.11392051]
[1767006244154,0.011404,87792.0,87772.0,0.11392051]
[1767006244362,0.02484549,87791.0,87775.0,0.0114061]
[1767006244557,0.0114036,87795.0,87775.0,0.0114061]
[1767006244758,0.0114038,87793.0,87775.0,0.0114061]
[1767006244962,0.02484547,87792.0,87771.0,0.05741086]
[1767006245162,0.02484952,87791.0,87774.0,0.0114062]
[1767006245464,0.0114039,87793.0,87774.0,0.0114062]
[1767006245660,0.02484949,87792.0,87774.0,0.0114062]
[1767006245867,0.0114045,87788.0,87775.0,0.11391597]
[1767006246255,0.0114045,87788.0,87771.0,0.06881756]
[1767006246665,0.0114041,87791.0,87773.0,0.0114064]
[1767006247365,0.02486033,87790.0,87774.0,0.11391857]
[1767006247570,0.0114041,87791.0,87775.0,0.15416]
[1767006247867,0.02486062,87790.0,87775.0,0.15416]
[1767006248161,0.0248664,87789.0,87775.0,0.15416]
[1767006248357,0.0114041,87791.0,87775.0,0.15416]
[1767006248552,0.09692,87800.0,87775.0,0.15416]
[1767006250366,0.0114035,87796.0,87778.0,0.0114057]
[1767006250763,0.0114035,87796.0,87779.0,0.11391143]
[1767006251357,0.09692,87800.0,87779.0,0.11391143]
[1767006251769,0.0114036,87795.0,87779.0,0.11391143]
[1767006253375,0.0114039,87793.0,87779.0,0.11391143]
[1767006254272,0.0114035,87796.0,87779.0,0.11391143]
[1767006254775,0.09692,87800.0,87779.0,0.11391143]
[1767006254975,0.0114046,87788.0,87775.0,0.15416]
[1767006255366,0.0114046,87788.0,87776.0,0.11390883]
[1767006255561,0.0114046,87788.0,87777.0,0.15416]
[1767006255963,0.0114041,87791.0,87777.0,0.15416]
[1767006256166,0.0114039,87793.0,87777.0,0.1655658]
[1767006257074,0.0114035,87796.0,87780.0,0.0114054]
[1767006257273,0.09692,87800.0,87781.0,0.0114053]
[1767006257274,0.0114032,87798.0,87781.0,0.0114053]
[1767006257476,0.0114035,87796.0,87781.0,0.0114053]
[1767006257665,0.09692,87800.0,87781.0,0.0114053]
[1767006258163,0.0114035,87796.0,87781.0,0.0114053]
[1767006258760,0.09692,87800.0,87777.0,0.15416]
[1767006258965,0.09692,87800.0,87785.0,0.0114048]
[1767006259165,0.09692,87800.0,87786.0,0.05724]
[1767006259166,0.0114031,87799.0,87786.0,0.05724]
[1767006259366,0.0114034,87797.0,87786.0,0.05724]
[1767006259876,0.05724,87806.0,87782.0,0.05724]
[1767006260182,0.0114046,87788.0,87782.0,0.05724]
[1767006261373,0.0114046,87788.0,87776.0,0.01139]
[1767006261571,0.0114051,87783.0,87776.0,0.01139]
[1767006261780,0.0114051,87783.0,87746.0,0.0114099]
[1767006261781,0.0114056,87780.0,87769.0,0.05724]
[1767006261982,0.0114052,87783.0,87769.0,0.05724]
[1767006262976,0.09692,87792.0,87772.0,0.04597]
[1767006263177,0.02473464,87791.0,87772.0,0.04197]
[1767006263379,0.02473464,87790.0,87772.0,0.04197]
[1767006263580,0.0114065,87773.0,87767.0,0.05724]
[1767006263779,0.0114043,87790.0,87767.0,0.01204997]
[1767006263980,0.02473506,87789.0,87767.0,0.01204997]
[1767006264174,0.02473506,87788.0,87767.0,0.01204997]
[1767006264376,0.02473506,87787.0,87767.0,0.01204997]
[1767006264576,0.0114064,87774.0,87754.0,0.0114088]
[1767006264784,0.0114068,87771.0,87755.0,0.15416]
[1767006264984,0.0114071,87768.0,87756.0,0.05724]
[1767006265383,0.0114071,87768.0,87737.0,0.07539708]
[1767006265683,0.00017086,87761.0,87751.0,0.0114092]
[1767006265877,0.00017086,87761.0,87752.0,0.15416]
[1767006266085,0.00017086,87761.0,87744.0,0.00017086]
[1767006266272,0.00017086,87761.0,87750.0,0.09692]
[1767006266472,0.00017086,87761.0,87745.0,0.11395232]
[1767006266785,0.00017086,87761.0,87744.0,0.00017086]
[1767006266786,0.0114082,87760.0,87744.0,0.00017086]
[1767006266984,0.00017086,87761.0,87745.0,0.05724]
[1767006267692,0.00017086,87761.0,87745.0,0.10235]
[1767006267989,0.01157896,87761.0,87745.0,0.04511]
[1767006268176,0.0114085,87758.0,87746.0,0.05724]
[1767006269378,0.0114083,87759.0,87746.0,0.05724]
[1767006269884,0.00017086,87761.0,87746.0,0.05724]
[1767006270080,0.00017086,87761.0,87745.0,0.04511]
[1767006270283,0.0114089,87755.0,87745.0,0.04511]
[1767006270480,0.00017086,87761.0,87745.0,0.10235]
[1767006272277,0.0114083,87759.0,87745.0,0.10235]
[1767006272780,0.09692,87770.0,87746.0,0.0114099]
[1767006272981,0.02472997,87769.0,87746.0,0.0114099]
[1767006273176,0.0114077,87764.0,87746.0,0.0114099]
[1767006273483,0.09692,87781.0,87752.0,0.011409]
[1767006273686,0.0114069,87769.0,87753.0,0.05724]
[1767006273877,0.00017051,87775.0,87753.0,0.05724]
[1767006274073,0.00017051,87775.0,87750.0,0.05724]
[1767006274074,0.0114083,87759.0,87750.0,0.05724]
[1767006274588,0.0114074,87766.0,87750.0,0.05724]
[1767006274788,0.0114077,87764.0,87750.0,0.05724]
[1767006276581,0.09692,87771.0,87750.0,0.05724]
[1767006276782,0.0114078,87763.0,87750.0,0.05724]
[1767006277385,0.0114074,87766.0,87750.0,0.05724]
[1767006277584,0.0114077,87764.0,87750.0,0.05724]
[1767006281989,0.09692,87771.0,87750.0,0.05724]
[1767006282186,0.02472915,87770.0,87750.0,0.05724]
[1767006282380,0.02472915,87769.0,87750.0,0.05724]
[1767006282581,0.0114075,87765.0,87750.0,0.05724]
[1767006282783,0.0114075,87765.0,87751.0,0.05476]
[1767006283486,0.18542119,87770.0,87751.0,0.05476]
[1767006283681,0.02473338,87769.0,87751.0,0.05476]
[1767006283882,0.18542119,87770.0,87751.0,0.05476]
[1767006284191,0.0114077,87764.0,87751.0,0.05476]
[1767006284989,0.0114072,87767.0,87751.0,0.05476]
[1767006285189,0.0114072,87767.0,87751.0,0.0661692]
[1767006289092,0.0114083,87759.0,87751.0,0.05476]
[1767006289294,0.18542119,87761.0,87751.0,0.05476]
[1767006289597,0.18542119,87761.0,87749.0,0.05724]
[1767006289985,0.0114081,87760.0,87749.0,0.05724]
[1767006290185,0.18542119,87761.0,87749.0,0.05724]
[1767006290591,0.0114085,87758.0,87749.0,0.05724]
[1767006292083,0.0114087,87756.0,87749.0,0.05724]
[1767006292696,0.19682939,87760.0,87749.0,0.05724]
[1767006292893,0.0114082,87760.0,87749.0,0.05724]
[1767006293295,0.02481421,87759.0,87745.0,0.09692]
[1767006293502,0.05724,87767.0,87745.0,0.09692]
[1767006293803,0.02481426,87766.0,87745.0,0.09692]
[1767006293986,0.02481426,87765.0,87745.0,0.09692]
[1767006294300,0.0114083,87759.0,87745.0,0.09692]
[1767006294497,0.02481426,87758.0,87745.0,0.09692]
[1767006294896,0.02481426,87757.0,87745.0,0.10833]
[1767006295097,0.0114083,87759.0,87745.0,0.09692]
[1767006295300,0.02482643,87758.0,87745.0,0.09692]
[1767006295495,0.02482643,87757.0,87745.0,0.09692]
[1767006295693,0.0114082,87760.0,87745.0,0.09692]
[1767006295895,0.0248303,87759.0,87745.0,0.09692]
[1767006296099,0.0248303,87758.0,87745.0,0.09692]
[1767006296397,0.0248303,87757.0,87745.0,0.09692]
[1767006296599,0.05724,87767.0,87745.0,0.10833]
[1767006296792,0.02483248,87766.0,87745.0,0.10833]
[1767006296993,0.02483248,87765.0,87745.0,0.10833]
[1767006297200,0.02483248,87764.0,87745.0,0.10833]
[1767006297400,0.0114081,87760.0,87745.0,0.10833]
[1767006297601,0.02483248,87759.0,87745.0,0.10833]
[1767006298500,2.48e-06,87759.0,87747.0,0.0114097]
[1767006298708,0.05724,87767.0,87747.0,0.0114097]
[1767006298897,0.0686473,87767.0,87751.0,0.0114092]
[1767006299298,0.05724,87767.0,87751.0,0.0114092]
[1767006299603,0.0114074,87766.0,87751.0,0.0686492]
[1767006299902,0.05724,87767.0,87751.0,0.0686492]
[1767006300300,0.0114077,87763.0,87751.0,0.05724]
[1767006300495,0.0114074,87766.0,87751.0,0.05724]
[1767006300690,0.011408,87761.0,87751.0,0.05724]
[1767006301301,0.011408,87761.0,87752.0,0.01139]
[1767006301501,0.0114085,87757.0,87752.0,0.01139]
[1767006301698,0.18542119,87762.0,87752.0,0.05724]
[1767006301904,0.0114084,87759.0,87752.0,0.05724]
[1767006302297,0.0114082,87760.0,87752.0,0.05724]
[1767006302906,0.011408,87761.0,87752.0,0.05724]
[1767006304505,0.0114087,87756.0,87744.0,0.00017086]
[1767006304705,0.0114091,87753.0,87745.0,0.05724]
[1767006304904,0.011409,87754.0,87745.0,0.05724]
[1767006305704,0.15416,87766.0,87744.0,6e-08]
[1767006305705,0.0114098,87747.0,87744.0,6e-08]
[1767006305895,0.0114103,87744.0,87735.0,0.09696]
[1767006306100,0.0114099,87747.0,87728.0,0.0114122]
[1767006306403,0.0114101,87745.0,87729.0,0.26816076]
[1767006306602,0.18542119,87750.0,87718.0,0.06160355]
[1767006306906,0.18542119,87740.0,87725.0,0.00017096]
[1767006307107,0.00017096,87743.0,87725.0,0.00017096]
[1767006307307,0.18542119,87740.0,87725.0,0.00017096]
[1767006307801,0.00010747,87739.0,87711.0,0.0114144]
[1767006308006,0.0114122,87729.0,87712.0,0.1542]
[1767006308195,0.0114125,87727.0,87713.0,0.1542]
[1767006308397,0.0114122,87729.0,87714.0,0.09696]
[1767006308595,0.0114125,87726.0,87714.0,0.09696]
[1767006308901,0.0114125,87726.0,87714.0,0.21095259]